fUSD/lending_fUSD_20241221
["ID","MTS","AMOUNT","RATE_DAILY","PERIOD"]
[346171539,1734763879616,-500.0,0.00021369,2]
[346171540,1734763879629,-500.0,0.00021369,2]
[346171541,1734763879642,-736.6,0.00021369,2]
[346171542,1734763879655,-190.45789294,0.00021369,2]
[346171543,1734763879667,-703.2,0.00021369,2]
[346171544,1734763879680,-1406.58,0.00021369,2]
[346171545,1734763879693,-1544.85,0.00021369,2]
[346171546,1734763879706,-665.66,0.00021369,2]
[346171547,1734763879719,-514.28,0.00021369,2]
[346171548,1734763879732,-500.0,0.00021369,2]
[346171549,1734763879744,-795.88,0.00021369,2]
[346171550,1734763879754,-500.0,0.00021369,2]
[346171551,1734763880069,-761.21,0.00021369,2]
[346171552,1734763880089,-1739.03,0.00021369,2]
[346171553,1734763880099,-500.0,0.00021369,2]
[346171554,1734763880108,-1021.76,0.00021369,2]
[346171555,1734763880118,-385.97501941,0.00021369,2]
[346171556,1734763880127,-702.19,0.00021369,2]
[346171557,1734763880136,-500.0,0.00021369,2]
[346171558,1734763880147,-859.2,0.00021369,2]
[346171559,1734763880156,-1193.73,0.00021369,2]
[346171560,1734763880165,-632.4,0.00021369,2]
[346171561,1734763880175,-2294.66,0.00021369,2]
[346171562,1734763880185,-806.9,0.00021369,2]
[346171563,1734763880196,-1021.18,0.00021369,2]
[346171564,1734763880206,-1013.35,0.00021369,2]
[346171565,1734763880216,-2927.04,0.00021369,2]
[346171566,1734763880226,-632.58,0.00021369,2]
[346171567,1734763880236,-348.53529511,0.00021369,2]
[346171568,1734763880246,-518.58,0.00021369,2]
[346171569,1734763880256,-647.88,0.00021369,2]
[346171570,1734763880270,-4561.25,0.00021369,2]
[346171571,1734763880280,-872.93,0.00021369,2]
[346171572,1734763880290,-885.58,0.00021369,2]
[346171573,1734763880299,-1603.4,0.00021369,2]
[346171574,1734763880310,-500.0,0.00021369,2]
[346171575,1734763880319,-1346.86,0.00021369,2]
[346171576,1734763880331,-500.0,0.00021369,2]
[346171577,1734763880342,-500.0,0.00021369,2]
[346171578,1734763880351,-763.45,0.00021369,2]
[346171579,1734763880360,-500.0,0.00021369,2]
[346171580,1734763880370,-984.85,0.00021369,2]
[346171581,1734763880379,-873.04,0.00021369,2]
[346171582,1734763880389,-500.0,0.00021369,2]
[346171583,1734763880399,-500.0,0.00021369,2]
[346171584,1734763880408,-620.97,0.00021369,2]
[346171585,1734763880418,-733.9,0.00021369,2]
[346171586,1734763880428,-564.73245184,0.00021369,2]
[346171587,1734763880438,-1060.44,0.00021369,2]
[346171588,1734763880447,-1223.12,0.00021369,2]
[346171589,1734763880456,-500.0,0.00021369,2]
[346171590,1734763880465,-633.71,0.00021369,2]
[346171591,1734763880475,-1063.84,0.00021369,2]
[346171592,1734763880484,-6034.63,0.00021369,2]
[346171593,1734763880493,-842.49,0.00021369,2]
[346171594,1734763880503,-500.0,0.00021369,2]
[346171595,1734763880512,-500.0,0.00021369,2]
[346171596,1734763880522,-7492.81,0.00021369,2]
[346171597,1734763880531,-500.0,0.00021369,2]
[346171598,1734763880541,-744.03,0.00021369,2]
[346171599,1734763880550,-946.91,0.00021369,2]
[346171600,1734763880560,-512.74,0.00021369,2]
[346171601,1734763880569,-630.38,0.00021369,2]
[346171602,1734763880582,-894.54,0.00021369,2]
[346171603,1734763880592,-500.0,0.00021369,2]
[346171604,1734763880602,-513.14,0.00021369,2]
[346171605,1734763880611,-500.0,0.00021369,2]
[346171606,1734763880622,-569.68,0.00021369,2]
[346171607,1734763880631,-2074.71,0.00021369,2]
[346171608,1734763880640,-1539.27,0.00021369,2]
[346171609,1734763880649,-500.0,0.00021369,2]
[346171610,1734763880659,-860.01,0.00021369,2]
[346171611,1734763880669,-925.87,0.00021369,2]
[346171612,1734763880678,-500.0,0.00021369,2]
[346171613,1734763880687,-500.0,0.00021369,2]
[346171614,1734763880697,-2324.7,0.00021369,2]
[346171615,1734763880707,-1111.8,0.00021369,2]
[346171616,1734763880716,-500.0,0.00021369,2]
[346171617,1734763880726,-500.0,0.00021369,2]
[346171618,1734763880736,-553.621,0.0002137,2]
[346171619,1734763880746,-500.0,0.00021373,2]
[346171620,1734763880755,-637.36,0.00021392,2]
[346171621,1734763880765,-558.29730921,0.00021392,2]
[346171622,1734763880775,-685.56,0.00021392,2]
[346171623,1734763880784,-500.0,0.00021393,2]
[346171624,1734763880794,-500.0,0.00021393,2]
[346171625,1734763880803,-611.09362932,0.00021393,2]
[346171626,1734763880812,-501.22583501,0.00021393,2]
[346171627,1734763880823,-500.0,0.00021393,2]
[346171628,1734763880832,-501.26558632,0.00021393,2]
[346171629,1734763880842,-500.0,0.00021393,2]
[346171630,1734763880852,-500.0,0.00021393,2]
[346171631,1734763880861,-500.0,0.00021393,2]
[346171632,1734763880871,-500.0,0.00021393,2]
[346171633,1734763880880,-500.0,0.00021393,2]
[346171634,1734763880889,-500.0,0.00021393,2]
[346171635,1734763880899,-500.0,0.00021393,2]
[346171636,1734763880908,-500.30898175,0.00021393,2]
[346171637,1734763880917,-500.0,0.00021393,2]
[346171638,1734763880927,-532.43654608,0.00021393,2]
[346171639,1734763880936,-633.85482483,0.00021393,2]
[346171640,1734763880946,-504.12907216,0.00021393,2]
[346171641,1734763880955,-500.0,0.00021393,2]
[346171642,1734763880965,-500.0,0.00021393,2]
[346171643,1734763880974,-500.0,0.00021393,2]
[346171644,1734763880983,-374.86967054,0.00021393,2]
[346171645,1734763880993,-500.0,0.00021393,2]
[346171646,1734763881002,-500.0,0.00021393,2]
[346171647,1734763881012,-500.0,0.00021393,2]
[346171648,1734763881021,-501.38548435,0.00021393,2]
[346171649,1734763881031,-500.0,0.00021393,2]
[346171650,1734763881040,-500.0,0.00021393,2]
[346171651,1734763881050,-300.0,0.00021393,2]
[346171652,1734763881059,-500.0,0.00021393,2]
[346171653,1734763881068,-500.0,0.00021393,2]
[346171654,1734763881080,-500.0,0.00021393,2]
[346171655,1734763881091,-500.0,0.00021393,2]
[346171656,1734763881101,-500.0,0.00021393,2]
[346171657,1734763881110,-519.27328515,0.00021393,2]
[346171658,1734763881119,-502.83992619,0.00021393,2]
[346171659,1734763881130,-500.0,0.00021393,2]
[346171660,1734763881140,-500.0,0.00021393,2]
[346171661,1734763881150,-500.0,0.00021393,2]
[346171662,1734763881159,-500.0,0.00021393,2]
[346171663,1734763881168,-500.72493896,0.00021393,2]
[346171664,1734763881177,-500.0,0.00021393,2]
[346171665,1734763881186,-500.0,0.00021393,2]
[346171666,1734763881196,-500.0,0.00021393,2]
[346171667,1734763881205,-500.0,0.00021393,2]
[346171668,1734763881216,-501.10341853,0.00021393,2]
[346171669,1734763881225,-501.81098224,0.00021393,2]
[346171670,1734763881235,-586.75301889,0.00021393,2]
[346171671,1734763881243,-500.0,0.00021393,2]
[346171672,1734763881253,-500.0,0.00021393,2]
[346171673,1734763881264,-502.45908207,0.00021393,2]
[346171674,1734763881273,-500.0,0.00021393,2]
[346171675,1734763881282,-500.0,0.00021393,2]
[346171676,1734763881291,-637.36,0.00021393,2]
[346171677,1734763881300,-500.0,0.00021393,2]
[346171678,1734763881311,-752.05,0.00021393,2]
[346171679,1734763881323,-500.0,0.00021393,2]
[346171680,1734763881332,-635.87,0.00021393,2]
[346171681,1734763881343,-558.8,0.00021393,2]
[346171682,1734763881352,-500.0,0.00021393,2]
[346171683,1734763881362,-500.0,0.00021393,2]
[346171684,1734763881371,-656.13,0.00021393,2]
[346171685,1734763881380,-542.76,0.00021393,2]
[346171686,1734763881390,-500.0,0.00021393,2]
[346171687,1734763881399,-561.7,0.00021393,2]
[346171688,1734763881408,-500.0,0.00021393,2]
[346171689,1734763881417,-752.18,0.00021393,2]
[346171690,1734763881426,-500.0,0.00021393,2]
[346171691,1734763881436,-646.72,0.00021393,2]
[346171692,1734763881445,-1018.18,0.00021393,2]
[346171693,1734763881454,-511.61503258,0.00021393,2]
[346171694,1734763881464,-500.0,0.00021393,2]
[346171695,1734763881474,-500.0,0.00021393,2]
[346171696,1734763881483,-603.67,0.00021393,2]
[346171697,1734763881492,-539.76,0.00021393,2]
[346171698,1734763881502,-581.25,0.00021393,2]
[346171699,1734763881511,-558.21878812,0.00021393,2]
[346171700,1734763881520,-753.41,0.00021393,2]
[346171701,1734763881530,-500.0,0.00021393,2]
[346171702,1734763881539,-500.0,0.00021393,2]
[346171703,1734763881548,-500.0,0.00021393,2]
[346171704,1734763881557,-500.0,0.00021393,2]
[346171705,1734763881567,-613.4,0.00021393,2]
[346171706,1734763881579,-500.0,0.00021393,2]
[346171707,1734763881588,-587.49,0.00021393,2]
[346171708,1734763881597,-500.0,0.00021393,2]
[346171709,1734763881607,-500.0,0.00021393,2]
[346171710,1734763881617,-500.0,0.00021393,2]
[346171711,1734763881626,-500.0,0.00021393,2]
[346171712,1734763881635,-585.31,0.00021393,2]
[346171713,1734763881645,-500.0,0.00021393,2]
[346171714,1734763881655,-549.07114102,0.00021393,2]
[346171715,1734763881664,-969.91,0.00021393,2]
[346171716,1734763881675,-612.68,0.00021393,2]
[346171717,1734763881685,-500.0,0.00021393,2]
[346171718,1734763881695,-500.0,0.00021393,2]
[346171719,1734763881704,-685.56,0.00021393,2]
[346171720,1734763881714,-704.51,0.00021393,2]
[346171721,1734763881724,-500.0,0.00021393,2]
[346171722,1734763881734,-785.75,0.00021393,2]
[346171723,1734763881743,-584.97,0.00021393,2]
[346171724,1734763881753,-500.0,0.00021393,2]
[346171725,1734763881762,-807.53,0.00021393,2]
[346171726,1734763881771,-500.0,0.00021393,2]
[346171727,1734763881781,-949.8,0.00021393,2]
[346171728,1734763881791,-500.0,0.00021393,2]
[346171729,1734763881800,-1047.38,0.00021393,2]
[346171730,1734763881810,-500.0,0.00021393,2]
[346171731,1734763881820,-828.43,0.00021393,2]
[346171732,1734763881831,-693.55,0.00021393,2]
[346171733,1734763881840,-500.0,0.00021393,2]
[346171734,1734763881850,-987.69,0.00021393,2]
[346171735,1734763881860,-998.86,0.00021393,2]
[346171736,1734763881870,-727.86,0.00021393,2]
[346171737,1734763881879,-666.29,0.00021393,2]
[346171738,1734763881889,-760.44,0.00021393,2]
[346171739,1734763881899,-525.91,0.00021393,2]
[346171740,1734763881909,-500.0,0.00021393,2]
[346171741,1734763881919,-1133.35,0.00021393,2]
[346171742,1734763881928,-829.52,0.00021393,2]
[346171743,1734763881938,-1190.66,0.00021393,2]
[346171744,1734763881948,-500.0,0.00021393,2]
[346171745,1734763881958,-500.0,0.00021394,2]
[346171746,1734763881967,-704.43,0.00021394,2]
[346171747,1734763881977,-500.0,0.00021394,2]
[346171748,1734763881987,-500.0,0.00021394,2]
[346171749,1734763881997,-500.0,0.00021394,2]
[346171750,1734763882006,-500.0,0.00021394,2]
[346171751,1734763882017,-500.0,0.00021394,2]
[346171752,1734763882027,-500.0,0.00021394,2]
[346171753,1734763882037,-500.0,0.00021394,2]
[346171754,1734763882047,-500.0,0.00021394,2]
[346171755,1734763882057,-500.0,0.00021394,2]
[346171756,1734763882067,-500.0,0.00021394,2]
[346171757,1734763882078,-500.0,0.00021394,2]
[346171758,1734763882087,-500.0,0.00021394,2]
[346171759,1734763882097,-500.0,0.00021394,2]
[346171760,1734763882107,-500.0,0.00021394,2]
[346171761,1734763882117,-500.0,0.00021394,2]
[346171762,1734763882126,-500.0,0.00021394,2]
[346171763,1734763882135,-500.0,0.00021394,2]
[346171764,1734763882145,-500.0,0.00021394,2]
[346171765,1734763882155,-500.0,0.00021394,2]
[346171766,1734763882164,-508.08727053,0.00021394,2]
[346171767,1734763882174,-500.0,0.00021394,2]
[346171768,1734763882183,-500.0,0.00021394,2]
[346171769,1734763882193,-500.0,0.00021394,2]
[346171770,1734763882203,-500.0,0.00021394,2]
[346171771,1734763882212,-500.0,0.00021394,2]
[346171772,1734763882222,-500.0,0.00021394,2]
[346171773,1734763882232,-500.0,0.00021394,2]
[346171774,1734763882242,-500.0,0.00021394,2]
[346171775,1734763882251,-502.36985725,0.00021394,2]
[346171776,1734763882265,-500.0,0.00021394,2]
[346171777,1734763882275,-500.0,0.00021394,2]
[346171778,1734763882284,-500.0,0.00021394,2]
[346171779,1734763882293,-500.0,0.00021394,2]
[346171780,1734763882304,-500.0,0.00021394,2]
[346171781,1734763882313,-500.0,0.00021394,2]
[346171782,1734763882323,-500.0,0.00021394,2]
[346171783,1734763882336,-500.0,0.00021394,2]
[346171784,1734763882347,-500.0,0.00021394,2]
[346171785,1734763882357,-500.0,0.00021394,2]
[346171786,1734763882366,-500.0,0.00021394,2]
[346171787,1734763882375,-500.0,0.00021394,2]
[346171788,1734763882385,-500.0,0.00021394,2]
[346171789,1734763882395,-507.64741232,0.00021394,2]
[346171790,1734763882405,-500.0,0.00021394,2]
[346171791,1734763882415,-506.64195676,0.00021394,2]
[346171792,1734763882424,-500.0,0.00021394,2]
[346171793,1734763882434,-500.0,0.00021394,2]
[346171794,1734763882443,-624.56,0.00021394,2]
[346171795,1734763882453,-500.0,0.00021394,2]
[346171796,1734763882462,-500.0,0.00021394,2]
[346171797,1734763882471,-500.0,0.00021394,2]
[346171798,1734763882481,-500.0,0.00021394,2]
[346171799,1734763882491,-500.0,0.00021394,2]
[346171800,1734763882500,-500.0,0.00021394,2]
[346171801,1734763882510,-500.0,0.00021394,2]
[346171802,1734763882519,-500.0,0.00021394,2]
[346171803,1734763882529,-500.0,0.00021394,2]
[346171804,1734763882539,-500.0,0.00021394,2]
[346171805,1734763882549,-500.0,0.00021394,2]
[346171806,1734763882559,-522.37486953,0.00021394,2]
[346171807,1734763882568,-500.0,0.00021394,2]
[346171808,1734763882581,-500.96200082,0.00021394,2]
[346171809,1734763882591,-500.0,0.00021394,2]
[346171810,1734763882602,-502.83792077,0.00021394,2]
[346171811,1734763882612,-500.0,0.00021394,2]
[346171812,1734763882623,-500.0,0.00021394,2]
[346171813,1734763882634,-500.0,0.00021394,2]
[346171814,1734763882644,-500.0,0.00021394,2]
[346171815,1734763882654,-500.0,0.00021394,2]
[346171816,1734763882664,-500.0,0.00021394,2]
[346171817,1734763882674,-500.0,0.00021394,2]
[346171818,1734763882684,-500.0,0.00021394,2]
[346171819,1734763882693,-500.0,0.00021394,2]
[346171820,1734763882703,-500.0,0.00021394,2]
[346171821,1734763882712,-500.0,0.00021394,2]
[346171822,1734763882721,-500.0,0.00021394,2]
[346171823,1734763882731,-500.0,0.00021394,2]
[346171824,1734763882740,-151.92020346,0.00021394,2]
[346171825,1734763882749,-500.0,0.00021394,2]
[346171826,1734763882759,-500.0,0.00021394,2]
[346171827,1734763882768,-500.0,0.00021394,2]
[346171828,1734763882778,-577.26831856,0.00021394,2]
[346171829,1734763882787,-5000.0,0.00021394,2]
[346171830,1734763882797,-500.0,0.00021394,2]
[346171831,1734763882807,-500.0,0.00021394,2]
[346171832,1734763882816,-502.73373815,0.00021394,2]
[346171833,1734763882827,-500.0,0.00021394,2]
[346171834,1734763882836,-500.0,0.00021394,2]
[346171835,1734763882846,-500.0,0.00021394,2]
[346171836,1734763882855,-500.0,0.00021394,2]
[346171837,1734763882865,-500.0,0.00021394,2]
[346171838,1734763882874,-500.0,0.00021394,2]
[346171839,1734763882884,-500.0,0.00021394,2]
[346171840,1734763882894,-500.0,0.00021394,2]
[346171841,1734763882904,-500.0,0.00021394,2]
[346171842,1734763882914,-500.0,0.00021394,2]
[346171843,1734763882923,-500.0,0.00021394,2]
[346171844,1734763882932,-500.0,0.00021394,2]
[346171845,1734763882942,-500.0,0.00021394,2]
[346171846,1734763882951,-500.0,0.00021394,2]
[346171847,1734763882960,-796.23,0.00021394,2]
[346171848,1734763882970,-500.0,0.00021394,2]
[346171849,1734763882979,-555.46,0.00021394,2]
[346171850,1734763882989,-500.0,0.00021394,2]
[346171851,1734763882998,-500.0,0.00021394,2]
[346171852,1734763883007,-500.0,0.00021394,2]
[346171853,1734763883018,-500.0,0.00021394,2]
[346171854,1734763883027,-500.0,0.00021394,2]
[346171855,1734763883036,-500.0,0.00021394,2]
[346171856,1734763883046,-500.0,0.00021394,2]
[346171857,1734763883055,-500.0,0.00021394,2]
[346171858,1734763883065,-500.0,0.00021394,2]
[346171859,1734763883075,-500.0,0.00021394,2]
[346171860,1734763883084,-500.0,0.00021394,2]
[346171861,1734763883093,-500.0,0.00021394,2]
[346171862,1734763883102,-500.0,0.00021394,2]
[346171863,1734763883112,-500.0,0.00021394,2]
[346171864,1734763883121,-500.0,0.00021394,2]
[346171865,1734763883130,-500.0,0.00021394,2]
[346171866,1734763883140,-500.0,0.00021394,2]
[346171867,1734763883149,-500.0,0.00021394,2]
[346171868,1734763883158,-537.11,0.00021394,2]
[346171869,1734763883168,-503.39304087,0.00021394,2]
[346171870,1734763883178,-500.0,0.00021394,2]
[346171871,1734763883187,-685.56,0.00021394,2]
[346171872,1734763883196,-811.37,0.00021394,2]
[346171873,1734763883205,-1237.38,0.00021394,2]
[346171874,1734763883215,-1685.23,0.00021394,2]
[346171875,1734763883224,-1451.27,0.00021394,2]
[346171876,1734763883233,-500.0,0.00021394,2]
[346171877,1734763883423,-500.0,0.00021394,2]
[346171878,1734763883433,-510.53,0.00021394,2]
[346171879,1734763883442,-1183.17,0.00021394,2]
[346171880,1734763883452,-870.45,0.00021394,2]
[346171881,1734763883461,-2957.21,0.00021394,2]
[346171882,1734763883471,-1132.82,0.00021394,2]
[346171883,1734763883481,-803.79,0.00021431,2]
[346171884,1734763883490,-180.8356751,0.00021475,2]
[346171885,1734763883499,-5000.0,0.000215,2]
[346171886,1734763883508,-284.11,0.00021532,2]
[346171887,1734763883517,-1265.0,0.00021557,2]
[346171888,1734763883527,-2010.0,0.00021557,2]
[346171889,1734763883536,-565.0,0.00021557,2]
[346171890,1734763883545,-150.0,0.00021557,2]
[346171891,1734763883555,-633.0,0.00021557,2]
[346171892,1734763883566,-1898.0,0.00021557,2]
[346171893,1734763883582,-3769.0,0.00021557,2]
[346171894,1734763883593,-818.0,0.00021557,2]
[346171895,1734763883604,-1255.0,0.00021557,2]
[346171896,1734763883616,-1048.309,0.00021557,2]
[346171897,1734763883627,-3681.0,0.00021557,2]
[346171898,1734763883638,-536.982,0.00021557,2]
[346171899,1734763883649,-3886.0,0.00021557,2]
[346171900,1734763883661,-1170.0,0.00021557,2]
[346171901,1734763883673,-150.0,0.00021557,2]
[346171902,1734763883685,-4625.873,0.00021557,2]
[346171903,1734763883697,-803.79,0.00021568,2]
[346171904,1734763883708,-2722.18434235,0.00021568,2]
[346171905,1734763883719,-150.93681909,0.00021568,2]
[346171906,1734763883729,-150.0,0.00021593,4]
[346171907,1734763883740,-637.36,0.00021599,2]
[346171908,1734763883752,-115305.66358867,0.00021637,2]
[346171909,1734763883763,-500.0,0.00021642,2]
[346171910,1734763883774,-500.0,0.00021642,2]
[346171911,1734763883786,-787.7,0.00021642,2]
[346171912,1734763883797,-500.0,0.00021642,2]
[346171913,1734763883807,-722.15,0.00021642,2]
[346171914,1734763883818,-598.48,0.00021642,2]
[346171915,1734763883837,-589.12,0.00021642,2]
[346171916,1734763883848,-746.52,0.00021642,2]
[346171917,1734763883859,-500.0,0.00021642,2]
[346171918,1734763883869,-500.0,0.00021642,2]
[346171919,1734763883880,-500.0,0.00021642,2]
[346171920,1734763883890,-579.24,0.00021642,2]
[346171921,1734763883901,-709.84,0.00021642,2]
[346171922,1734763883911,-704.07,0.00021642,2]
[346171923,1734763883922,-656.8,0.00021642,2]
[346171924,1734763883932,-772.15,0.00021642,2]
[346171925,1734763883943,-500.0,0.00021642,2]
[346171926,1734763883956,-500.0,0.00021642,2]
[346171927,1734763883966,-500.0,0.00021642,2]
[346171928,1734763883976,-500.0,0.00021642,2]
[346171929,1734763883987,-500.0,0.00021642,2]
[346171930,1734763883998,-1124.77,0.00021642,2]
[346171931,1734763884009,-512.85,0.00021642,2]
[346171932,1734763884021,-1044.57,0.00021642,2]
[346171933,1734763884032,-577.68,0.00021642,2]
[346171934,1734763884042,-500.0,0.00021642,2]
[346171935,1734763884052,-500.0,0.00021642,2]
[346171936,1734763884063,-687.33,0.00021642,2]
[346171937,1734763884076,-727.24,0.00021642,2]
[346171938,1734763884087,-500.0,0.00021642,2]
[346171939,1734763884099,-500.0,0.00021642,2]
[346171940,1734763884108,-671.56,0.00021642,2]
[346171941,1734763884118,-500.0,0.00021642,2]
[346171942,1734763884129,-604.9,0.00021642,2]
[346171943,1734763884139,-500.0,0.00021642,2]
[346171944,1734763884150,-503.11,0.00021642,2]
[346171945,1734763884160,-500.0,0.00021642,2]
[346171946,1734763884170,-648.38,0.00021642,2]
[346171947,1734763884180,-534.85,0.00021642,2]
[346171948,1734763884190,-500.0,0.00021642,2]
[346171949,1734763884199,-578.88,0.00021642,2]
[346171950,1734763884209,-500.0,0.00021642,2]
[346171951,1734763884219,-500.0,0.00021642,2]
[346171952,1734763884230,-546.17,0.00021642,2]
[346171953,1734763884239,-500.0,0.00021642,2]
[346171954,1734763884249,-520.15,0.00021642,2]
[346171955,1734763884262,-500.0,0.00021642,2]
[346171956,1734763884273,-628.26,0.00021642,2]
[346171957,1734763884283,-529.73,0.00021642,2]
[346171958,1734763884293,-1052.04,0.00021642,2]
[346171959,1734763884304,-396.76977274,0.00021642,2]
[346171960,1734763884315,-607.01,0.00021642,2]
[346171961,1734763884327,-752.7,0.00021642,2]
[346171962,1734763884337,-944.17,0.00021642,2]
[346171963,1734763884347,-716.64,0.00021642,2]
[346171964,1734763884358,-829.23,0.00021642,2]
[346171965,1734763884367,-539.95,0.00021642,2]
[346171966,1734763884377,-739.19,0.00021642,2]
[346171967,1734763884387,-783.63,0.00021642,2]
[346171968,1734763884397,-500.0,0.00021642,2]
[346171969,1734763884407,-500.0,0.00021642,2]
[346171970,1734763884417,-1210.89,0.00021642,2]
[346171971,1734763884428,-512.97,0.00021642,2]
[346171972,1734763884437,-1023.43,0.00021642,2]
[346171973,1734763884446,-500.0,0.00021642,2]
[346171974,1734763884456,-658.92,0.00021642,2]
[346171975,1734763884466,-985.94,0.00021642,2]
[346171976,1734763884475,-522.13,0.00021643,2]
[346171977,1734763884485,-526.95,0.00021643,2]
[346171978,1734763884494,-420.81870397,0.00021643,2]
[346171979,1734763884504,-470.42446606,0.00021643,2]
[346171980,1734763884514,-753.3,0.00021643,2]
[346171981,1734763884524,-500.0,0.00021643,2]
[346171982,1734763884534,-500.0,0.00021643,2]
[346171983,1734763884543,-500.0,0.00021643,2]
[346171984,1734763884553,-500.0,0.00021643,2]
[346171985,1734763884562,-521.01614763,0.00021643,2]
[346171986,1734763884572,-500.0,0.00021643,2]
[346171987,1734763884584,-817.72,0.00021643,2]
[346171988,1734763884594,-500.0,0.00021643,2]
[346171989,1734763884603,-500.0,0.00021643,2]
[346171990,1734763884613,-500.0,0.00021643,2]
[346171991,1734763884622,-619.92,0.00021643,2]
[346171992,1734763884631,-500.0,0.00021643,2]
[346171993,1734763884641,-500.0,0.00021643,2]
[346171994,1734763884650,-674.16,0.00021643,2]
[346171995,1734763884659,-500.0,0.00021643,2]
[346171996,1734763884669,-781.83,0.00021643,2]
[346171997,1734763884678,-500.0,0.00021643,2]
[346171998,1734763884687,-500.0,0.00021643,2]
[346171999,1734763884696,-500.0,0.00021643,2]
[346172000,1734763884705,-646.79,0.00021643,2]
[346172001,1734763884714,-1000.0,0.00021643,30]
[346172002,1734763884724,-759.27,0.00021643,2]
[346172003,1734763884733,-500.0,0.00021643,2]
[346172004,1734763884743,-535.16,0.00021643,2]
[346172005,1734763884752,-500.0,0.00021643,2]
[346172006,1734763884761,-1140.19,0.00021643,2]
[346172007,1734763884771,-504.11,0.00021643,2]
[346172008,1734763884780,-713.15,0.00021643,2]
[346172009,1734763884789,-721.59,0.00021643,2]
[346172010,1734763884799,-500.0,0.00021643,2]
[346172011,1734763884808,-500.0,0.00021643,2]
[346172012,1734763884817,-500.0,0.00021643,2]
[346172013,1734763884826,-1544.805157,0.00021643,2]
[346172014,1734763884836,-925.78,0.00021643,2]
[346172015,1734763884845,-500.0,0.00021643,2]
[346172016,1734763884854,-500.0,0.00021643,2]
[346172017,1734763884863,-500.0,0.00021643,2]
[346172018,1734763884872,-1057.2639,0.00021643,2]
[346172019,1734763884881,-500.0,0.00021643,2]
[346172020,1734763884890,-500.0,0.00021643,2]
[346172021,1734763884899,-625.61989703,0.00021643,2]
[346172022,1734763884909,-549.38,0.00021643,2]
[346172023,1734763884919,-577.88278542,0.00021643,2]
[346172024,1734763884928,-500.0,0.00021643,2]
[346172025,1734763884937,-500.0,0.00021643,2]
[346172026,1734763884946,-575.46,0.00021643,2]
[346172027,1734763884955,-792.53,0.00021643,2]
[346172028,1734763884964,-500.0,0.00021643,2]
[346172029,1734763884973,-500.0,0.00021643,2]
[346172030,1734763884982,-635.22,0.00021643,2]
[346172031,1734763884991,-880.04,0.00021643,2]
[346172032,1734763885001,-500.0,0.00021643,2]
[346172033,1734763885010,-1008.16,0.00021643,2]
[346172034,1734763885020,-726.35,0.00021643,2]
[346172035,1734763885030,-500.0,0.00021643,2]
[346172036,1734763885040,-589.35,0.00021643,2]
[346172037,1734763885049,-811.84,0.00021643,2]
[346172038,1734763885059,-500.0,0.00021643,2]